bitfinex/quotes_SOLUSD_20260213
["timestamp","ask_amount","ask_price","bid_price","bid_amount"]
[1770960612758,36.84,78.508,78.472,0.47026409]
[1770960614273,4.38819567,78.51,78.474,0.47026409]
[1770960614459,12.73739316,78.509,78.474,0.47026409]
[1770960615696,0.1,78.51,78.481,0.47026409]
[1770960618973,0.1,78.51,78.483,0.47026409]
[1770960619482,0.1,78.51,78.491,0.47026409]
[1770960620886,0.1,78.53,78.501,0.47026409]
[1770960621090,4.38819567,78.53,78.501,0.47026409]
[1770960621377,4.28819567,78.52,78.503,0.47026409]
[1770960623077,0.2,78.524,78.503,0.47026409]
[1770960623477,4.28819567,78.52,78.503,0.47026409]
[1770960625385,0.2,78.525,78.503,0.47026409]
[1770960627280,0.2,78.519,78.498,12.73914649]
[1770960627580,0.2,78.519,78.494,12.73980214]
[1770960627884,0.2,78.519,78.495,0.47026409]
[1770960628985,0.2,78.519,78.497,0.47026409]
[1770960630084,4.2825223,78.52,78.497,0.47026409]
[1770960630989,4.2825223,78.52,78.499,0.46276635]
[1770960631880,4.5825223,78.53,78.499,0.46276635]
[1770960632081,0.1,78.54,78.511,0.46276635]
[1770960632385,0.1,78.54,78.521,0.46276635]
[1770960633285,0.1,78.54,78.523,0.46276635]
[1770960637585,4.3825223,78.55,78.515,31.84098234]
[1770960637586,0.1,78.55,78.525,0.48158089]
[1770960638296,0.1,78.55,78.531,0.48158089]
[1770960638478,0.4,78.564,78.532,0.48158089]
[1770960638678,12.72863816,78.563,78.532,0.48158089]
[1770960639879,4.2825223,78.56,78.533,12.73350056]
[1770960640204,4.2825223,78.56,78.534,0.48158089]
[1770960641305,0.48543807,78.56,78.536,0.48158089]
[1770960641509,4.76796037,78.56,78.536,0.48158089]
[1770960642009,0.48543807,78.559,78.536,0.48158089]
[1770960642212,0.48543807,78.549,78.531,0.48158089]
[1770960643907,4.2825223,78.55,78.531,0.48158089]
[1770960644718,0.48543807,78.554,78.531,0.48158089]
[1770960644892,0.48543807,78.554,78.531,13.21528594]
[1770960645091,0.48543807,78.554,78.532,0.48158089]
[1770960646105,12.72951332,78.558,78.532,0.48158089]
[1770960646599,12.72951332,78.558,78.534,0.48158089]
[1770960646796,0.48543807,78.571,78.534,0.48158089]
[1770960646995,0.48543807,78.584,78.551,0.48158089]
[1770960647195,0.48543807,78.584,78.551,0.34620896]
[1770960648216,0.48543807,78.584,78.552,12.73042061]
[1770960648595,4.3825223,78.58,78.552,12.73042061]
[1770960649114,4.3825223,78.58,78.553,0.48158089]
[1770960649496,4.3825223,78.58,78.555,0.48158089]
[1770960650797,0.1,78.58,78.557,0.48158089]
[1770960651024,4.3825223,78.59,78.556,44.55420336]
[1770960651220,4.3825223,78.59,78.56,4.2825223]
[1770960651408,4.3825223,78.59,78.556,44.55420336]
[1770960651409,0.1,78.59,78.57,4.2825223]
[1770960652208,0.1,78.6,78.57,4.2825223]
[1770960652399,0.1,78.61,78.59,4.2825223]
[1770960652902,0.1,78.61,78.581,0.48158089]
[1770960653926,0.58543807,78.61,78.581,0.48158089]
[1770960654929,0.1,78.61,78.583,0.48158089]
[1770960657014,0.1,78.61,78.585,0.48158089]
[1770960657419,0.58543807,78.61,78.585,0.48158089]
[1770960659409,0.58543807,78.61,78.587,0.48158089]
[1770960659925,0.1,78.61,78.591,0.48158089]
[1770960661028,4.2825223,78.63,78.586,44.53719491]
[1770960661029,0.4763714,78.643,78.602,0.46086208]
[1770960661322,0.4763714,78.649,78.621,0.46086208]
[1770960661517,0.4763714,78.649,78.623,0.46086208]
[1770960663813,0.4763714,78.639,78.621,49.72]
[1770960664014,0.4763714,78.639,78.621,62.43917931]
[1770960664417,0.4763714,78.639,78.621,49.72]
[1770960665021,0.4763714,78.639,78.615,12.72011788]
[1770960666332,0.4763714,78.639,78.609,12.72118968]
[1770960667412,0.4763714,78.639,78.61,0.46086208]
[1770960667616,0.4763714,78.639,78.61,4.74338438]
[1770960667824,0.4763714,78.639,78.61,4.2825223]
[1770960668020,0.4763714,78.639,78.611,0.46086208]
[1770960668226,0.1,78.64,78.621,0.46086208]
[1770960668434,0.1,78.64,78.625,0.46086208]
[1770960670446,0.1,78.64,78.626,12.71843919]
[1770960674326,0.1,78.64,78.624,50.32086208]
[1770960674327,0.5763714,78.64,78.624,49.86]
[1770960674536,0.5763714,78.64,78.625,12.71860095]
[1770960676227,0.5763714,78.64,78.62,12.71940981]
[1770960676427,0.5763714,78.64,78.622,0.46086208]
[1770960677351,0.1,78.64,78.624,0.46086208]
[1770960678352,0.4763714,78.639,78.597,0.46086208]
[1770960678558,0.4763714,78.639,78.573,63.63509093]
[1770960678559,0.4763714,78.639,78.602,0.46086208]
[1770960681962,0.4763714,78.639,78.601,49.96]
[1770960681963,0.4763714,78.639,78.611,0.46086208]
[1770960683147,0.4763714,78.639,78.606,0.46086208]
[1770960684334,0.4763714,78.639,78.61,4.2825223]
[1770960684533,0.4763714,78.639,78.611,0.46086208]
[1770960687150,0.4763714,78.639,78.612,12.72070421]
[1770960687557,0.4763714,78.639,78.613,0.46086208]
[1770960687753,4.3825223,78.64,78.621,0.46086208]
[1770960687754,0.1,78.64,78.621,0.46086208]
[1770960687940,0.5763714,78.64,78.621,0.46086208]
[1770960690955,0.5763714,78.64,78.623,0.48304718]
[1770960691466,0.5763714,78.64,78.622,12.71908626]
[1770960691666,0.49973996,78.639,78.622,12.71908626]
[1770960692863,0.49973996,78.639,78.613,12.7205424]
[1770960694848,0.47645928,78.639,78.616,0.45154061]
[1770960695845,0.47645928,78.639,78.615,12.72021878]
[1770960697652,0.47645928,78.639,78.615,0.45154061]
[1770960697863,0.47645928,78.639,78.612,0.45154061]
[1770960698465,0.1,78.64,78.606,12.72167519]
[1770960698466,0.47645928,78.637,78.606,12.72167519]
[1770960698667,0.47645928,78.629,78.606,12.72167519]
[1770960699063,0.47645928,78.629,78.606,13.1732158]
[1770960699251,0.47645928,78.629,78.606,12.72167519]
[1770960699664,0.47645928,78.629,78.602,13.17386319]
[1770960700672,0.47645928,78.629,78.602,12.72232258]
[1770960702077,0.1,78.64,78.598,12.7229043]
[1770960702078,0.47645928,78.619,78.598,12.7229043]
[1770960703872,0.47645928,78.619,78.596,0.45154061]
[1770960704175,0.1,78.64,78.611,0.45154061]
[1770960704479,0.1,78.64,78.621,0.45154061]
[1770960704670,0.1,78.64,78.63,4.2678626]
[1770960705270,0.1,78.64,78.626,0.45154061]
[1770960706284,0.1,78.64,78.628,0.45154061]
[1770960707052,0.1,78.64,78.63,4.2678626]
[1770960707457,0.1,78.64,78.63,4.71940321]
[1770960707659,0.1,78.64,78.631,0.45154061]
[1770960708977,0.47645928,78.639,78.627,12.71827743]
[1770960710196,0.47645928,78.639,78.625,50.2]
[1770960710784,0.47645928,78.639,78.62,4.2678626]
[1770960710960,0.47645928,78.639,78.621,13.17078864]
[1770960712260,0.47645928,78.639,78.622,0.45154061]
[1770960712579,0.47645928,78.639,78.621,12.71924803]
[1770960715782,0.47645928,78.639,78.614,0.45154061]
[1770960717195,0.1,78.64,78.621,0.45154061]
[1770960717694,0.57645928,78.64,78.621,0.45154061]
[1770960718069,0.57645928,78.64,78.615,12.72021878]
[1770960718070,0.57645928,78.64,78.616,0.45154061]
[1770960718687,0.57645928,78.64,78.62,4.2678626]
[1770960719281,0.57645928,78.64,78.622,0.45154061]
[1770960719865,0.1,78.64,78.622,0.45154061]
[1770960721678,0.1,78.64,78.624,0.48304718]
[1770960724191,0.1,78.64,78.625,12.71860095]
[1770960724496,0.1,78.64,78.627,0.48304718]
[1770960725987,0.1,78.64,78.628,13.20116286]
[1770960726303,0.1,78.65,78.628,13.20116286]
[1770960726304,0.1,78.65,78.631,0.48315424]
[1770960726589,0.1,78.65,78.641,0.48315424]
[1770960727385,0.1,78.65,78.64,50.44]
[1770960728190,0.49153721,78.649,78.64,50.44]
[1770960728395,0.49153721,78.649,78.631,63.17763045]
[1770960729884,0.49153721,78.649,78.631,50.46]
[1770960730083,0.49153721,78.649,78.632,12.71746871]
[1770960733976,0.49153721,78.649,78.633,0.48315424]
[1770960734171,0.49153721,78.649,78.634,12.71714525]
[1770960734377,0.49153721,78.649,78.635,0.48315424]
[1770960734898,0.1,78.65,78.635,0.48315424]
[1770960735197,0.59153721,78.65,78.634,12.71714525]
[1770960735580,0.59153721,78.65,78.631,50.94315424]
[1770960735581,0.49153721,78.649,78.631,50.46]
[1770960735893,0.49153721,78.649,78.631,63.17749689]
[1770960736493,0.49153721,78.649,78.627,12.71824694]
[1770960739498,0.49153721,78.649,78.618,82.41932143]
[1770960739499,0.49153721,78.647,78.618,50.62]
[1770960739678,0.49153721,78.639,78.618,50.62]
[1770960740485,0.49153721,78.639,78.619,12.7195716]
[1770960741786,0.49153721,78.637,78.618,49.62]
[1770960741984,12.71649838,78.638,78.598,12.72297005]
[1770960741985,0.12541561,78.629,78.598,12.72297005]
[1770960742297,0.12541561,78.629,78.599,0.48315424]
[1770960743201,0.12541561,78.619,78.599,0.48315424]
[1770960743695,0.12541561,78.619,78.598,12.72297005]
[1770960744278,0.12541561,78.625,78.601,0.48315424]
[1770960744474,0.12541561,78.639,78.611,0.48315424]
[1770960745079,30.42,78.644,78.621,0.48315424]
[1770960745275,0.12541561,78.646,78.621,0.48315424]
[1770960746403,4.39327821,78.64,78.621,0.48315424]
[1770960749103,0.12541561,78.639,78.612,12.72070421]
[1770960749291,0.12541561,78.639,78.613,0.48315424]
[1770960752108,0.12541561,78.639,78.614,12.72038059]
[1770960752306,0.12541561,78.639,78.615,0.46073328]
[1770960754301,0.12541561,78.639,78.617,0.49776573]
[1770960754899,4.26904763,78.64,78.617,0.49776573]
[1770960755100,0.12541561,78.645,78.617,0.49776573]
[1770960755309,4.39446324,78.64,78.617,0.49776573]
[1770960755610,0.12541561,78.639,78.617,0.49776573]
[1770960756707,0.12541561,78.639,78.614,50.88]
[1770960756914,0.12541561,78.629,78.611,63.62075703]
[1770960757091,0.12541561,78.629,78.611,12.72075703]
[1770960757494,0.12541561,78.629,78.611,13.21852276]
[1770960758116,0.12541561,78.629,78.611,0.49776573]
[1770960758314,0.12541561,78.629,78.607,63.64146812]
[1770960758517,0.12541561,78.629,78.608,0.49776573]
[1770960759225,4.26904763,78.63,78.609,12.72118968]
[1770960759519,0.12541561,78.635,78.61,0.49776573]
[1770960759727,4.26904763,78.63,78.61,0.49776573]
[1770960760614,4.39446324,78.63,78.61,0.49776573]
[1770960762614,4.39446324,78.63,78.612,0.49776573]
[1770960762925,0.12541561,78.63,78.612,0.49776573]
[1770960765926,0.12541561,78.629,78.612,0.49776573]
[1770960766524,0.12541561,78.629,78.613,13.21830813]
[1770960766826,0.12541561,78.629,78.614,0.49776573]
[1770960768230,0.1,78.65,78.616,0.49776573]
[1770960768407,0.12541561,78.648,78.616,0.49776573]
[1770960769102,0.12541561,78.648,78.615,12.72021878]
[1770960769103,0.12541561,78.629,78.611,0.49776573]
[1770960769431,0.12541561,78.629,78.597,42.84]
[1770960769727,0.12541561,78.629,78.598,0.49776573]
[1770960770309,0.12541561,78.629,78.599,0.49776573]
[1770960770608,0.12541561,78.609,78.59,12.72411228]
[1770960771419,0.12541561,78.609,78.591,0.49776573]
[1770960772305,0.12541561,78.609,78.592,12.72394136]
[1770960772718,0.12541561,78.609,78.592,13.22170709]
[1770960773110,0.12541561,78.609,78.593,0.49776573]
[1770960775311,4.26904763,78.61,78.593,0.49776573]
[1770960776527,0.12541561,78.613,78.595,0.49776573]
[1770960779231,4.26904763,78.61,78.595,0.49776573]
[1770960780234,4.26904763,78.62,78.597,0.49776573]
[1770960780435,12.71757838,78.632,78.586,0.49776573]
[1770960780436,0.12541561,78.609,78.586,0.49776573]
[1770960780934,0.12541561,78.609,78.581,51.1]
[1770960781230,12.7195716,78.619,78.534,50.93297953]
[1770960781231,0.12541561,78.589,78.563,0.46862937]
[1770960781407,12.72280817,78.599,78.55,4.46904763]
[1770960781408,4.26904763,78.57,78.556,0.46862937]
[1770960781611,0.12541561,78.569,78.55,0.2]
[1770960781830,0.12541561,78.569,78.55,12.93069148]
[1770960782904,0.12541561,78.569,78.55,13.39932085]
[1770960783523,4.39446324,78.59,78.561,0.46862937]
[1770960783725,0.12541561,78.599,78.561,0.46862937]
[1770960784321,4.39446324,78.59,78.561,0.46862937]
[1770960785034,4.26904763,78.58,78.561,0.46862937]
[1770960785228,0.12541561,78.589,78.563,0.46862937]
[1770960787736,0.12541561,78.589,78.565,0.46862937]
[1770960789330,4.26904763,78.58,78.565,0.46862937]
[1770960789735,4.26904763,78.58,78.566,12.72815212]
[1770960791918,0.12541561,78.584,78.566,12.72815212]
[1770960792113,4.26904763,78.58,78.559,12.72924649]
[1770960792318,0.12541561,78.579,78.557,12.72961034]
[1770960792633,4.26904763,78.57,78.557,12.72961034]
[1770960792838,0.12541561,78.569,78.55,0.2]
[1770960793838,0.12541561,78.574,78.552,0.46862937]
[1770960795017,4.26904763,78.58,78.554,0.46862937]
[1770960795218,0.12541561,78.583,78.554,0.46862937]
[1770960796942,4.26904763,78.58,78.556,0.46862937]
[1770960797817,0.12541561,78.588,78.556,0.46862937]
[1770960798023,0.12541561,78.588,78.558,0.46862937]
[1770960799260,4.26904763,78.59,78.561,0.46862937]
[1770960799422,16.99172327,78.6,78.571,0.46862937]
[1770960800744,0.12541561,78.599,78.571,0.46862937]
[1770960800928,4.26904763,78.59,78.571,0.46862937]
[1770960806045,4.26904763,78.59,78.573,0.46862937]
[1770960807126,12.72327389,78.597,78.573,0.46862937]
[1770960807749,12.8486895,78.597,78.573,0.46862937]
[1770960808424,0.12541561,78.596,78.573,0.46862937]
[1770960809840,0.12541561,78.589,78.561,0.46862937]
[1770960810041,0.12541561,78.589,78.564,13.19703633]
[1770960810247,0.12541561,78.589,78.564,12.72840696]
[1770960810447,0.12541561,78.589,78.565,0.46862937]
[1770960812451,0.12541561,78.589,78.566,12.72815212]
[1770960813655,0.12541561,78.589,78.566,0.47327662]
[1770960814966,0.12541561,78.579,78.557,0.45914536]
[1770960815540,4.27518103,78.58,78.557,0.45914536]
[1770960818139,0.12541561,78.584,78.559,0.45914536]
[1770960818468,12.7251021,78.585,78.559,0.45914536]
[1770960818852,4.27518103,78.59,78.561,0.45914536]
[1770960820644,4.27518103,78.59,78.563,0.45914536]
[1770960824456,0.12541561,78.595,78.565,0.45914536]
[1770960825750,0.12541561,78.603,78.571,0.45914536]
[1770960826467,0.12541561,78.608,78.573,0.45914536]
[1770960827265,0.12541561,78.613,78.581,0.45914536]
[1770960827465,12.72021427,78.616,78.581,0.45914536]
[1770960827761,0.12541561,78.617,78.581,0.45914536]
[1770960827964,0.12541561,78.617,78.59,4.27518103]
[1770960828263,12.84543046,78.617,78.591,0.45914536]
[1770960830156,0.12541561,78.617,78.591,0.45914536]
[1770960830569,0.12541561,78.623,78.593,0.45914536]
[1770960830968,12.71854385,78.626,78.601,0.45914536]
[1770960831147,12.84395946,78.626,78.601,0.45914536]
[1770960831774,0.12541561,78.625,78.601,0.45914536]
[1770960833170,12.71696618,78.636,78.603,0.45914536]
[1770960833355,0.12541561,78.648,78.621,0.45914536]
[1770960834269,0.1,78.65,78.621,0.45914536]
[1770960834462,0.1,78.65,78.603,51.46]
[1770960834463,0.1,78.65,78.631,0.45914536]
[1770960834668,0.1,78.65,78.641,0.45914536]
[1770960834866,0.1,78.66,78.641,0.45914536]
[1770960837469,0.1,78.67,78.652,0.45914536]
[1770960837672,0.22541561,78.669,78.646,0.45914536]
[1770960838873,0.22541561,78.659,78.62,4.27518103]
[1770960839170,0.22541561,78.649,78.622,0.45914536]
[1770960839566,0.22541561,78.669,78.641,0.45914536]
[1770960839771,0.22541561,78.668,78.641,0.45914536]
[1770960840268,0.22541561,78.659,78.631,0.45914536]
[1770960841180,0.22541561,78.659,78.633,0.49449359]
[1770960842669,36.44541561,78.665,78.633,0.49449359]
[1770960842872,0.22541561,78.664,78.633,0.49449359]
[1770960843368,0.22541561,78.664,78.634,12.71714525]
[1770960843574,0.22541561,78.664,78.635,0.49449359]
[1770960844381,36.22,78.665,78.635,0.49449359]
[1770960845279,36.22,78.665,78.634,12.71714525]
[1770960845280,36.22,78.665,78.641,0.49449359]
[1770960845666,12.93771094,78.664,78.641,0.49449359]
[1770960845857,0.22541561,78.659,78.627,0.49449359]
[1770960846458,0.22541561,78.649,78.627,0.49449359]
[1770960846660,0.22541561,78.649,78.619,0.49449359]
[1770960846661,4.27518103,78.64,78.619,0.49449359]
[1770960846859,0.22541561,78.639,78.619,0.49449359]
[1770960847068,0.22541561,78.639,78.613,12.72045341]
[1770960847462,4.27518103,78.63,78.608,0.49449359]
[1770960847668,4.27518103,78.62,78.601,13.21685987]
[1770960847900,4.27518103,78.63,78.602,0.49449359]
[1770960848285,36.46541561,78.634,78.602,0.49449359]
[1770960848577,4.27518103,78.63,78.602,0.49449359]
[1770960848786,0.22541561,78.629,78.602,0.49449359]
[1770960848963,0.22541561,78.609,78.571,0.49449359]
[1770960849164,4.27518103,78.59,78.571,0.49449359]
[1770960850086,4.50059664,78.59,78.565,0.49449359]
[1770960850386,0.22541561,78.597,78.565,0.49449359]
[1770960851272,0.22541561,78.597,78.566,12.72815212]
[1770960851473,0.22541561,78.597,78.567,0.49449359]
[1770960853367,0.22541561,78.597,78.569,0.49449359]
[1770960854074,0.22541561,78.595,78.569,0.49449359]
[1770960855481,4.27518103,78.59,78.569,0.49449359]
[1770960857880,0.22541561,78.595,78.57,0.49449359]
[1770960858285,4.27518103,78.6,78.57,0.49449359]
[1770960858474,0.22541561,78.598,78.57,0.49449359]
[1770960859983,0.22541561,78.596,78.57,0.49449359]
[1770960862684,0.22541561,78.589,78.557,0.49449359]
[1770960863080,0.22541561,78.589,78.56,4.27518103]
[1770960863384,0.22541561,78.589,78.561,0.49449359]
[1770960866277,12.9500046,78.588,78.561,0.49449359]
[1770960866775,4.27518103,78.59,78.563,0.49449359]
[1770960867085,0.22541561,78.598,78.563,0.49449359]
[1770960867491,0.22541561,78.597,78.563,0.49449359]
[1770960870799,0.22541561,78.597,78.565,0.48936809]
[1770960871195,31.80388214,78.607,78.564,12.72847614]
[1770960871196,36.36,78.601,78.571,0.48936809]
[1770960872778,36.36,78.601,78.57,4.27518103]
[1770960872779,36.36,78.601,78.573,0.48936809]
[1770960874500,36.36,78.601,78.575,0.4741957]
[1770960876697,0.22541561,78.599,78.577,0.4741957]
[1770960879305,0.22541561,78.599,78.578,12.72620835]
[1770960879510,0.22541561,78.599,78.579,0.4741957]
[1770960881794,36.36,78.601,78.581,0.4741957]
[1770960881988,4.61729252,78.616,78.581,0.4741957]
[1770960881989,4.27265913,78.62,78.581,0.4741957]
[1770960882188,0.22541561,78.619,78.581,0.4741957]
[1770960882389,0.22541561,78.618,78.581,0.4741957]
[1770960886010,0.22541561,78.618,78.583,0.4741957]
[1770960886189,12.71989518,78.617,78.583,0.4741957]
[1770960886590,0.22541561,78.616,78.583,0.4741957]
[1770960890312,0.22541561,78.616,78.585,0.4741957]
[1770960892213,0.22541561,78.616,78.587,0.4741957]
[1770960892422,0.22541561,78.614,78.587,0.4741957]
[1770960892599,0.22541561,78.609,78.587,0.4741957]
[1770960893296,12.72021878,78.615,78.54,9.63352101]
[1770960893297,4.27265913,78.6,78.571,0.4741957]
[1770960893496,0.22541561,78.599,78.571,0.4741957]
[1770960894314,0.22541561,78.599,78.572,0.4741957]
[1770960894506,0.22541561,78.589,78.568,0.4741957]
[1770960895604,0.22541561,78.589,78.569,0.4741957]
[1770960897025,0.22541561,78.589,78.571,0.4741957]
[1770960897217,0.22541561,78.596,78.571,0.4741957]
[1770960899917,0.22541561,78.595,78.571,0.4741957]
[1770960900516,0.22541561,78.595,78.573,0.49251044]
[1770960900706,4.27265913,78.59,78.561,0.49251044]
[1770960900910,0.22541561,78.589,78.561,0.49251044]
[1770960902321,0.22541561,78.587,78.561,0.49251044]
[1770960902622,0.22541561,78.579,78.556,13.22224802]
[1770960902995,0.22541561,78.579,78.557,0.49251044]
[1770960904215,0.22541561,78.579,78.558,12.7294483]
[1770960904627,0.22541561,78.579,78.55,12.93062583]
[1770960904829,0.22541561,78.577,78.551,0.49251044]
[1770960907328,0.22541561,78.575,78.551,0.49251044]
[1770960907822,0.22541561,78.575,78.553,0.49251044]
[1770960908320,0.22541561,78.58,78.56,4.27265913]
[1770960908506,0.22541561,78.58,78.561,0.49251044]
[1770960910406,0.22541561,78.58,78.56,4.27265913]
[1770960910724,36.76,78.582,78.561,0.49251044]
[1770960912233,36.76,78.582,78.562,12.72880018]
[1770960912432,17.21924196,78.61,78.571,0.49251044]
[1770960912615,36.84,78.609,78.581,0.49251044]
[1770960912817,0.22541561,78.619,78.591,0.49251044]
[1770960913130,36.84,78.618,78.591,0.49251044]
[1770960913432,0.22541561,78.619,78.591,0.49251044]
[1770960914727,0.22541561,78.619,78.593,0.49251044]
[1770960916816,0.22541561,78.617,78.588,13.21698827]
[1770960917021,0.22541561,78.609,78.583,0.49251044]
[1770960918734,0.22541561,78.609,78.585,0.49251044]
[1770960920814,0.22541561,78.619,78.587,0.49251044]
[1770960921019,0.22541561,78.614,78.587,0.49251044]
[1770960922954,0.22541561,78.614,78.588,12.72458899]
[1770960923236,0.22541561,78.614,78.589,0.49251044]
[1770960923439,36.9,78.615,78.59,4.27265913]
[1770960923625,36.94,78.621,78.591,0.49251044]
[1770960923833,0.22541561,78.625,78.591,0.49251044]
[1770960924030,37.16541561,78.629,78.591,0.49251044]
[1770960924226,0.22541561,78.628,78.591,0.49251044]
[1770960925330,0.22541561,78.628,78.592,12.72394136]
[1770960925641,0.22541561,78.628,78.593,0.49251044]
[1770960926823,0.22541561,78.628,78.595,0.49251044]
[1770960928045,0.22541561,78.639,78.611,0.49251044]
[1770960929931,0.22541561,78.639,78.613,0.49251044]
[1770960930926,0.22541561,78.644,78.613,0.49251044]
[1770960931339,36.98,78.646,78.621,0.45335311]
[1770960932247,0.22541561,78.649,78.623,0.45335311]
[1770960932434,4.27265913,78.65,78.623,0.45335311]
[1770960932743,0.22541561,78.649,78.623,0.45335311]
[1770960933641,0.22541561,78.647,78.623,0.45335311]
[1770960933842,0.22541561,78.639,78.613,12.72053696]
[1770960934051,0.22541561,78.639,78.614,0.48395527]
[1770960934230,0.22541561,78.648,78.621,0.48395527]
[1770960935151,4.26820005,78.65,78.621,0.48395527]
[1770960935357,4.49361566,78.66,78.623,0.48395527]
[1770960935651,0.1,78.67,78.641,0.48395527]
[1770960935652,4.36820005,78.67,78.641,0.48395527]
[1770960936846,0.22541561,78.669,78.641,0.48395527]
[1770960937356,0.22541561,78.649,78.625,0.48395527]
[1770960938137,0.22541561,78.655,78.625,0.48395527]
[1770960938857,0.22541561,78.667,78.631,0.48395527]
[1770960939054,4.36820005,78.67,78.641,0.48395527]
[1770960939354,0.1,78.67,78.642,44.50548053]
[1770960939540,0.1,78.67,78.643,0.48395527]
[1770960940136,0.1,78.67,78.651,0.48395527]
[1770960940337,0.1,78.67,78.661,0.48395527]
[1770960940548,4.26820005,78.69,78.661,0.48395527]
[1770960940953,0.32541561,78.689,78.661,0.48395527]
[1770960942060,0.32541561,78.689,78.663,0.48395527]
[1770960942361,0.32541561,78.689,78.652,13.19819012]
[1770960942362,4.26820005,78.67,78.652,13.19819012]
[1770960942550,0.32541561,78.673,78.652,13.19819012]
[1770960942747,4.26820005,78.67,78.652,13.19819012]
[1770960943346,0.32541561,78.669,78.647,12.71493352]
[1770960944276,0.32541561,78.669,78.644,0.48395527]
[1770960945361,0.32541561,78.669,78.645,13.19932179]
[1770960945557,4.26820005,78.67,78.642,0.48395527]
[1770960945558,0.32541561,78.661,78.642,0.48395527]
[1770960945766,0.32541561,78.669,78.642,0.48395527]
[1770960947070,0.32541561,78.674,78.642,0.48395527]
[1770960947248,4.26820005,78.67,78.642,0.48395527]
[1770960947860,4.26820005,78.67,78.644,0.48395527]
[1770960948046,0.32541561,78.678,78.644,0.48395527]
[1770960951848,37.02,78.679,78.651,0.48395527]
[1770960952862,4.26820005,78.67,78.651,0.48395527]
[1770960953255,0.32541561,78.671,78.651,0.48395527]
[1770960953256,37.02,78.679,78.651,0.48395527]
[1770960953575,0.32541561,78.678,78.651,0.48395527]
[1770960954078,37.02,78.679,78.652,12.71423485]
[1770960954382,37.02,78.679,78.653,0.48395527]
[1770960955378,4.26820005,78.68,78.653,0.48395527]
[1770960955560,0.32541561,78.679,78.653,0.48395527]
[1770960956561,0.32541561,78.679,78.655,0.48395527]
[1770960960665,0.32541561,78.684,78.657,0.48775921]
[1770960962085,0.32541561,78.679,78.659,0.48775921]
[1770960964254,0.32541561,78.679,78.66,13.20070098]
[1770960964576,0.32541561,78.679,78.661,0.48775921]
[1770960966358,0.32541561,78.679,78.65,0.48775921]
[1770960966563,0.32541561,78.669,78.648,0.48775921]
[1770960967380,0.32541561,78.659,78.631,0.48775921]
[1770960967979,0.32541561,78.659,78.631,44.99946578]
[1770960968180,0.32541561,78.659,78.632,0.48775921]
[1770960968483,0.32541561,78.669,78.632,0.48775921]
[1770960968870,0.32541561,78.669,78.634,0.48775921]
[1770960969381,4.26820005,78.66,78.634,0.48775921]
[1770960969979,0.32541561,78.659,78.634,0.48775921]
[1770960971767,4.26820005,78.66,78.636,0.48775921]
[1770960971965,0.32541561,78.664,78.636,0.48775921]
[1770960972188,0.32541561,78.676,78.651,0.48775921]
[1770960972586,4.26820005,78.68,78.651,0.48775921]
[1770960973292,16.97796406,78.68,78.653,0.48775921]
[1770960975505,4.26820005,78.68,78.655,0.48775921]
[1770960975679,0.32541561,78.689,78.661,0.48775921]
[1770960976495,4.26820005,78.69,78.661,0.48775921]
[1770960976670,0.32541561,78.694,78.661,0.48775921]
[1770960976875,50.78843787,78.759,78.671,0.48775921]
[1770960976876,4.36820005,78.7,78.671,0.48775921]
[1770960977081,0.32541561,78.699,78.671,0.48775921]
[1770960977281,0.1,78.7,78.671,0.48775921]
[1770960977473,0.1,78.7,78.681,0.48775921]
[1770960978489,0.1,78.7,78.683,0.48775921]
[1770960980174,0.1,78.7,78.684,12.7090641]
[1770960980379,0.1,78.7,78.685,0.48775921]
[1770960982897,0.1,78.7,78.686,13.19650028]
[1770960984192,0.1,78.7,78.687,0.48775921]
[1770960985401,0.1,78.7,78.686,12.70874107]
[1770960985402,0.1,78.7,78.689,0.48775921]
[1770960986793,4.36820005,78.71,78.691,0.48775921]
[1770960986794,0.1,78.71,78.691,0.48775921]
[1770960987100,0.1,78.71,78.701,0.48775921]
[1770960987400,0.1,78.72,78.701,0.48775921]
[1770960989301,0.1,78.72,78.7,4.26820005]
[1770960989302,0.1,78.72,78.703,0.48775921]
[1770960990904,0.1,78.73,78.711,0.48651459]
[1770960991489,0.1,78.73,78.712,0.48651459]
[1770960992101,0.1,78.73,78.721,0.48651459]
[1770960992502,0.1,78.74,78.721,0.48651459]
[1770960992689,0.1,78.74,78.731,0.48651459]
[1770960993006,0.2,78.75,78.731,0.48651459]
[1770960993402,0.2,78.75,78.741,0.48651459]
[1770960993805,0.2,78.75,78.732,44.45460549]
[1770960993806,0.2,78.75,78.736,0.48651459]
[1770960995189,0.2415594,78.764,78.741,0.4870585]
[1770960995388,0.2415594,78.764,78.751,0.4870585]
[1770960997491,0.2415594,78.764,78.753,0.4870585]
[1770961000818,1e-08,78.764,78.755,0.4870585]